Cogmind - Beta 11 X9 @@@ ROGUE MODE // 2022.02.03 @ 14:13:52 Player: LU-1G1 Result: Destroyed by D-53 Grenadier with Mini Grenade Launcher Performance ------------- Evolutions (0) 0 Regions Visited (2) 400 Robots Destroyed (28) 140 Value Destroyed (501) 501 Prototype IDs (0) 0 Alien Tech Used (0) 0 Bonus (0) 0 TOTAL SCORE: 1041 Bonus ------- None Cogmind --------- Core Integrity 0/250 Matter 238/300 Energy 100/100 System Corruption 0% Temperature Cool (0) Movement Core (350) Ox6 Location -10/Mines Parts ------- > --- POWER (1) -------- (None) > --- PROPULSION (2) --- (None) > --- UTILITY (2) ------ Large Storage Unit Improved Targeting Computer > --- WEAPON (2) ------- (None) > --- INVENTORY (15) --- Aluminum Leg Wheel Small Storage Unit Light Armor Plating Hacking Suite Assault Rifle Assault Rifle Assault Rifle Assault Rifle Assault Rifle Assault Rifle EMP Blaster EMP Blaster EMP Blaster EMP Blaster Peak State ------------ > --- POWER ------------ Ion Engine > --- PROPULSION ------- Aluminum Leg Aluminum Leg > --- UTILITY ---------- Large Storage Unit Improved Targeting Computer > --- WEAPON ----------- Assault Rifle Rocket Launcher > --- INVENTORY -------- Aluminum Leg Wheel Small Storage Unit Light Armor Plating Hacking Suite Assault Rifle Assault Rifle Assault Rifle Assault Rifle Assault Rifle Assault Rifle EMP Blaster EMP Blaster EMP Blaster EMP Blaster [Rating: 11] Favorites ----------- Power Light Ion Engine Engine Light Ion Engine Propulsion Light Treads Treads Light Treads Leg Aluminum Leg Wheel Wheel Utility Large Storage Unit Storage Large Storage Unit Processor Improved Targeting Computer Weapon Assault Rifle Ballistic Gun Assault Rifle Launcher Rocket Launcher Build | -11 -10 -10 ------- Run | Scr Mat Min Slots Evolved . | . . . Power . | . . . Propulsion . | . . . Utility . | . . . Weapon . | . . . Parts Attached 29 | 6 17 6 Power 4 | 1 3 . Engine 4 | 1 3 . Core . | . . . Reactor . | . . . Propulsion 14 | 2 7 5 Treads 5 | 2 3 . Leg 5 | . 2 3 Wheel 4 | . 2 2 Hover . | . . . Flight . | . . . Utility 3 | 1 2 . Device . | . . . Storage 2 | 1 1 . Processor 1 | . 1 . Hackware . | . . . Protection . | . . . Artifact . | . . . Weapon 8 | 2 5 1 Energy Gun . | . . . Energy Cannon . | . . . Ballistic Gun 7 | 2 5 . Ballistic Cannon . | . . . Launcher 1 | . . 1 Special Weapon . | . . . Impact Weapon . | . . . Slashing Weapon . | . . . Piercing Weapon . | . . . Special Melee Weapon . | . . . Unidentified Prototypes . | . . . Parts Lost 11 | . 6 5 Power 2 | . 1 1 Propulsion 5 | . 3 2 Utility . | . . . Weapon 4 | . 2 2 Highest Loss Streak 5 | . 5 5 Average Slot Usage (%) 88 | . 85 97 Engine 11 | . 10 13 Treads 11 | . 15 . Leg 5 | . 3 10 Wheel 8 | . 5 17 Storage 14 | . 14 14 Processor 9 | . 8 14 Ballistic Gun 27 | . 27 26 Naked Turns . | . . . Heaviest Build 31 | 12 29 31 Greatest Support 40 | 40 40 26 Greatest Overweight (x) 8 | . 8 6 Average Overweight (x) . | . . 1 Largest Inventory Capacity 15 | 8 15 15 Average Capacity 14 | 7 14 15 Most Carried 15 | 6 15 15 Average Carried 12 | 4 12 14 Final Capacity 15 | 8 15 15 Final Carried 15 | 6 15 15 Class Distribution -------------------- 100% | Mutant Dominant Class ---------------- Mutant | -10/Materials Mutant | -10/Mines Resources | -11 -10 -10 ----------- Run | Scr Mat Min Matter Collected 1004 | 209 641 154 Remotely . | . . . Salvage Created 968 | 25 744 199 Parts 65 | . 46 19 Haulers Intercepted . | . . . Recyclers Shooed 2 | . 2 . Parts Field Recycled . | . . . Retrieved Matter . | . . . Parts Self-Destructed . | . . . Prevented . | . . . Kills | -11 -10 -10 ------- Run | Scr Mat Min Combat Hostiles Destroyed 28 | . 11 17 Guns 16 | . 11 5 AOE 12 | . . 12 Classes Destroyed 8 | 1 6 1 Worker 4 | . 3 1 Builder 2 | . 2 . Tunneler 2 | 1 . 1 Recycler 3 | . 3 . Operator 1 | . 1 . Swarmer 6 | . 3 3 Grunt 10 | . 8 2 Assembled 12 | . . 12 Best Kill Streak 12 | 1 5 12 Combat Bots Only 12 | . 3 12 Max Kills in Single Turn 6 | 1 2 6 Gunslinging . | . . . Exploded 6 | . . 6 Melee . | . . . Uniques/NPCs Destroyed . | . . . Combat | -11 -10 -10 -------- Run | Scr Mat Min Damage Taken 1376 | . 749 627 Core 254 | . 72 182 Absorbed by Shields . | . . . Core Remaining (%) 100 | 100 . . Volleys Fired 102 | 3 76 23 Largest 2 | 2 2 2 Hottest 40 | 40 40 40 Shots Fired 195 | 6 150 39 Gun 188 | 6 150 32 Cannon . | . . . Launcher 7 | . . 7 Special . | . . . Kinetic 188 | 6 150 32 Thermal . | . . . Explosive 7 | . . 7 Electromagnetic . | . . . Robot Hit Streak 17 | 2 17 12 Robot Miss Streak 6 | 1 6 3 Penetration Max . | . . . Secondary Targets 2 | . 1 1 Max Gunslinging Chain 1 | . 1 1 Shots Hit Robots 136 | 3 110 23 Core Hits 79 | 1 34 44 Critical Kills . | . . . Critical Parts Destroyed . | . . . Critical Strikes . | . . . Melee Attacks . | . . . Impact . | . . . Slashing . | . . . Piercing . | . . . Sneak Attacks . | . . . Combat Hostiles . | . . . Follow-up Attacks . | . . . Damage Inflicted 2615 | 40 1397 1178 Guns 1688 | 40 1391 257 Cannons . | . . . Explosions 917 | . . 917 Melee . | . . . Ramming 10 | . 6 4 Kinetic 1688 | 40 1391 257 Thermal . | . . . Explosive 917 | . . 917 Electromagnetic . | . . . Impact . | . . . Slashing . | . . . Piercing . | . . . Highest Corruption . | . . . Average Corruption . | . . . Corruption Purged . | . . . Overload Shots . | . . . Overflow Damage 37 | . . 37 Projectiles . | . . . Explosions 37 | . . 37 Melee . | . . . Knockbacks . | . . . Impact . | . . . Kinetic . | . . . Secondary . | . . . Self-Inflicted Damage 38 | . . 38 Shots 1 | . . 1 Rammed 3 | 2 1 . Targets Rammed 7 | 2 3 2 Kicked 3 | . 1 2 Crushed 1 | . 1 . Highest Temperature 8 | . 8 . Average Temperature 2 | . 2 . Received Heat Transfer 450 | . 402 48 Siege Activations . | . . . Robots Corrupted . | . . . Combat Hostiles . | . . . Parts Fried . | . . . Impact Corruptions . | . . . Robots Melted . | . . . Combat Hostiles . | . . . Parts Melted . | . . . Heat Transferred . | . . . Parts Sabotaged . | . . . Parts Stolen . | . . . Parts Stripped . | . . . Power Chain Reactions . | . . . Missiles Intercepted . | . . . Alert | -11 -10 -10 ------- Run | Scr Mat Min Peak Influence 195 | 5 195 145 Initial 3 | . 3 . Average 64 | 3 55 119 Maximum Alert Level . | . . . Low Security (%) 100 | 100 100 100 Level 1 . | . . . Level 2 . | . . . Level 3 . | . . . Level 4 . | . . . Level 5 . | . . . High Security . | . . . Max Security . | . . . Squads Dispatched 3 | . 3 . Investigation 1 | . 1 . Extermination . | . . . Reinforcement 2 | . 2 . Assault . | . . . Garrison . | . . . Intercept . | . . . Construction Impeded . | . . . Haulers Reinforced . | . . . Active Scanning Responses . | . . . Cargo Convoy Interrupts . | . . . Stealth | -11 -10 -10 --------- Run | Scr Mat Min Distress Signals 3 | . 3 . Communications Jammed . | . . . Distress Signals . | . . . Times Spotted 52 | . 29 23 Peak Tracking Total 15 | . 7 15 Tactical Retreats 2 | . 2 . Traps | -11 -10 -10 ------- Run | Scr Mat Min Traps Triggered 5 | . 5 . Indirectly . | . . . Trap Hack Attempts . | . . . Triggered . | . . . Disarmed . | . . . Reprogrammed . | . . . Reused . | . . . Traps Extracted . | . . . Installed . | . . . Triggered . | . . . Machines | -11 -10 -10 ---------- Run | Scr Mat Min Machines Disabled . | . . . Max in Single Turn . | . . . Machines Sabotaged . | . . . Garrisons Compromised . | . . . Overloaded Fab Kills . | . . . Hacking | -11 -10 -10 --------- Run | Scr Mat Min Machines Accessed 7 | . 6 1 Terminals 6 | . 5 1 Fabricators . | . . . Repair Stations . | . . . Recycling Units 1 | . 1 . Scanalyzers . | . . . Garrison Access . | . . . Total Hacks 13 | . 12 1 Successful 6 | . 5 1 Failed 7 | . 7 . Catastrophic 3 | . 3 . Database Lockouts . | . . . Manual 6 | . 6 . Terminals 10 | . 9 1 Fabricators . | . . . Repair Stations . | . . . Recycling Units 3 | . 3 . Scanalyzers . | . . . Garrison Access . | . . . Terminal Hacks 6 | . 5 1 Part Schematic 1 | . 1 . Unreport Threat 1 | . 1 . Locate Traps 1 | . 1 . Hauler Manifests 1 | . 1 . Zone Layout 2 | . 1 1 Fabricator Hacks . | . . . Repair Station Hacks . | . . . Recycling Unit Hacks . | . . . Scanalyzer . | . . . Garrison Access Hacks . | . . . Unauthorized Hacks . | . . . Terminals . | . . . Fabricators . | . . . Repair Stations . | . . . Recycling Units . | . . . Scanalyzers . | . . . Garrison Access . | . . . Data Cores Recovered . | . . . Used . | . . . Hacking Detections 7 | . 6 1 Full Trace Events . | . . . Feedback Events . | . . . Feedback Blocked . | . . . Robot Schematics Acquired . | . . . Robots Built . | . . . Authchips . | . . . Time . | . . . Total Robot Build Rating . | . . . Part Schematics Acquired 1 | . 1 . Parts Built . | . . . Authchips . | . . . Time . | . . . Total Part Build Rating . | . . . Parts Repaired . | . . . Time . | . . . Parts Recycled . | . . . Recycled Matter . | . . . Retrieved Matter . | . . . Retrieved Components . | . . . Parts Scanalyzed . | . . . Part Schematics Acquired . | . . . Parts Damaged . | . . . Bothacking | -11 -10 -10 ------------ Run | Scr Mat Min Used RIF Installer . | . . . Robots Hacked . | . . . Non-combat . | . . . Combat . | . . . Robot Hacks Applied . | . . . Relay Couplers Released . | . . . Fabnet Peak Effective % . | . . . Robots Rewired . | . . . Allies Hacked . | . . . Hacks Repelled . | . . . Allies | -11 -10 -10 -------- Run | Scr Mat Min Total Allies . | . . . Largest Group . | . . . Highest-Rated Group . | . . . Highest-Rated Ally . | . . . Total Orders . | . . . Ally Attacks . | . . . Total Damage . | . . . Kills . | . . . Allies Corrupted . | . . . Allies Melted . | . . . Intel | -11 -10 -10 ------- Run | Scr Mat Min Robot Analysis Total . | . . . Derelict Logs Recovered 1 | . . 1 Drone Launches . | . . . Drone Recoveries . | . . . Exploration | -11 -10 -10 ------------- Run | Scr Mat Min Turns Passed 1812 | 191 1219 402 Spaces Moved 953 | 106 596 251 Core 8 | 4 3 1 Treads 407 | 102 305 . Legs 138 | . 71 67 Wheels 400 | . 217 183 Hover . | . . . Flight . | . . . Fastest Speed 50 | 50 90 95 Average Speed 146 | 155 152 127 Slowest Speed 450 | 160 450 350 Overloaded Moves . | . . . Propulsion Burnouts . | . . . Robots Hopped . | . . . Cave-ins Triggered . | . . . Exploration Rate (%) 44 | 7 84 43 Regions Visited 2 Branch Regions 1 Pre-discovered Areas . | . . . Known Exits Taken . | . . . Unknown Exits Taken 2 | 1 1 . Scrap Searched . | . . . Spaces Dug . | . . . Terrain Destroyed 51 | . . 51 Melee . | . . . Projectile . | . . . AOE 51 | . . 51 Terrain Rammed . | . . . Walls Destroyed . | . . . Machines Disabled . | . . . Actions | -11 -10 -10 --------- Run | Scr Mat Min Total 1165 | 122 748 295 Wait 39 | . 37 2 Move 951 | 105 595 251 Hop . | . . . Pick Up 24 | 6 15 3 Fast Attach 20 | 6 12 2 Attach 5 | . 5 . Detach 2 | . 2 . Swap 4 | . . 4 Drop 11 | . 3 8 Fire 102 | 3 76 23 Melee . | . . . Ram . | . . . Kick 3 | . 1 2 Crush 4 | 2 2 . Escape Stasis . | . . . Rewire . | . . . Trap . | . . . Miscellaneous . | . . . Route ------- -11/Scrapyard -10/Materials (discovered 4 exits: [*Mat x3] / *Min) -10/Mines (discovered 2 exits: [*Mat x2]) History --------- Turn | Location | Event 19 | -11/Scrapyard | Discovered new exit (range 15) 192 | -11/Scrapyard | Entered Materials 309 | -10/Materials | Build established: Mutant 407 | -10/Materials | Discovered new exit (range 8) 689 | -10/Materials | Discovered new exit (range 4) 978 | -10/Materials | Lost 5 parts (1p2n2w) 1308 | -10/Materials | Discovered new exit (range 13) 1382 | -10/Materials | Discovered new exit (range 11) 1411 | -10/Materials | Entered Mines 1467 | -10/Mines | Learned Materials garrison access intel 1484 | -10/Mines | Discovered new exit (range 17) 1612 | -10/Mines | Discovered new exit (range 5) 1643 | -10/Mines | Received a Rocket Launcher from a helpful Derelict 1771 | -10/Mines | Assembled infested the area 1782 | -10/Mines | Core integrity fell below 50% 1795 | -10/Mines | Met 8R-AWN 1804 | -10/Mines | Destroyed 12 combat bots 1812 | -10/Mines | Core integrity fell below 20% 1813 | -10/Mines | Destroyed by D-53 Grenadier with Mini Grenade Launcher Last Messages --------------- 01806_ as-20921 suffers critical hit (Destroy). 01806_ as-20921 destroyed. 01806_ HV Slug penetrates Wall. 01807_ The unstable cave ceiling collapses. 01807_ U-05 Engineer lays Concrete. 01809_ Penetrated by HV Slug. 01809_ HV Slug penetrates Earth. 01809_ HV Slug penetrates as-20296. 01809_ as-20296 suffers critical hit (Destroy). 01809_ as-20296 destroyed. 01809_ HV Slug penetrates Earth. 01809_ Assault Rifle destroyed. 01809_ Aluminum Leg destroyed. 01809_ Ion Engine destroyed. 01809_ U-05 Engineer lays Concrete. 01811_ HV Slug penetrates D-53 Grenadier. 01811_ D-53 Grenadier suffers critical hit (Destroy). 01811_ D-53 Grenadier destroyed. 01811_ U-05 Engineer lays Concrete. 01812_ U-05 Engineer builds a Wall. Map ----- +----------------------------------------------------+ | ?????????## ###### ! = * | | ??????????# ##### !!###! | | ??????????# = ###[ | | ???###????# ! ## | | ??## #???########## ## | | ??# #???????????## ## | | ??# ##?????####?# ### | | ???# ##???## ### *!#?? | | ???# ##?## #### #?? | | ???# ### ###==#?? | | ???# #?? | | ???## #### #?? | | ???# # ###??# #?? | | ??## #####????# #?? | | ??# ##????????# =#?? | | ??# % ##????????# #?? | | ??# ####?????# #?? | | ?## u ##????# ?? | | ## ##???# ? | | # * "%" | | # # ]%u d # | | =# ## ###### # | | !###?####????# # | | # ##???????????# | | #???????????# | | # @ ###???????????# | | # ##?????????????# | | #??????????????? | | #??????????????? | | # # #??????????????? ###? | | ###g ##???????????????????? | | ?? % ##????????????????????? | | ?? < #?????????????????????? | | ?? ?????????????????????? | | ?? ?????????????????????? | | ?? ?????????????????????? | | ??# #?????????????????????? | | ???###?????????????????????? | | ???????????????????????????? | | ???????????????????????????? | | ???????????????????????????? | | ???????????????????????????? | | ???????????????????????????? | | | | | | | | | | | | | | | +----------------------------------------------------+ Best States ------------- Heat Dissipation 25 Energy Generation 10 Energy Capacity 250 Matter Stores 300 Matter Capacity 300 Sight Range 16 Terrain Scan Density 10 Evasion (%) 42 Targeting Accuracy 6 Recoil Reduction 2 Item Schematics ----------------- Huge Storage Unit | -10/Materials | Hacked Robot Schematics ------------------ None Fabricated ------------ Nothing Alien Tech Used ----------------- None Achievements -------------- None Challenges ------------ None Game ------ Seed TiamatIntegratedLance Manual? 0 Play Time 00:15:58 Cumulative 455.2 hours Start 2022.02.03 @ 06:17:32 End 2022.02.03 @ 14:13:52 Sessions 3 Manual Loads 0 Difficulty Rogue Special Mode None Game No. 450 Rogue 235 Adventurer 112 Explorer 103 Win Type - Total 30 Types 22/0/5/2/0/0/0/1/0 Lore% 86 Gallery% 90 Achievement% 80 Wizard Run 0 Options --------- ASCII 0 Keyboard 1 Movement Vi Keybinds 1 Fullscreen 2 Font 14/SmallcapsGlow Map View 72x54 Tactical HUD 1 Map Filters NONE Filters NONE Steam X RUN: 3c35a022-07c7-4353-b5de-bc6fea8f1c07